[Event "Biel DQA Blitzn"]
[Site "Biel/Bienne, Switzerland"]
[Date "2022.07.17"]
[Round "10.3"]
[White "Tamrazyan, Gohar"]
[Black "Sumarriva Paulin, Laura"]
[Result "1/2-1/2"]
[TimeControl "3 min + 2 sec"]
[WhiteElo "1733"]
[BlackElo "1886"]

1. d4 {[%clk 00:03:03]} d5 {[%clk 00:03:03]} {[%emt 00:00:01]} 2. Nc3 {[%clk
00:03:04]} {[%emt 00:00:01]} Nf6 {[%clk 00:03:01]} {[%emt 00:00:04]} 3. Bf4
{[%clk 00:03:05]} c5 {[%clk 00:03:01]} {[%emt 00:00:02]} 4. e4 {[%clk
00:03:06]} {[%emt 00:00:01]} e6 {[%clk 00:02:56]} {[%emt 00:00:06]} 5. exd5
{[%clk 00:02:14]} {[%emt 00:00:54]} exd5 {[%clk 00:02:55]} {[%emt 00:00:02]} 6.
Nf3 {[%clk 00:02:10]} {[%emt 00:00:07]} Nc6 {[%clk 00:02:54]} {[%emt 00:00:03]}
7. Bb5 {[%clk 00:02:07]} {[%emt 00:00:05]} Bd6 {[%clk 00:02:28]} {[%emt
00:00:28]} 8. Bxd6 {[%clk 00:01:58]} {[%emt 00:00:11]} Qxd6 {[%clk 00:02:28]}
{[%emt 00:00:02]} 9. O-O {[%clk 00:01:52]} {[%emt 00:00:08]} O-O {[%clk
00:02:28]} {[%emt 00:00:02]} 10. dxc5 {[%clk 00:01:45]} {[%emt 00:00:09]} Qxc5
{[%clk 00:02:27]} {[%emt 00:00:03]} 11. Be2 {[%clk 00:01:34]} {[%emt 00:00:14]}
Bf5 {[%clk 00:02:22]} {[%emt 00:00:06]} 12. Bd3 {[%clk 00:01:32]} {[%emt
00:00:05]} Bg4 {[%clk 00:02:20]} {[%emt 00:00:04]} 13. h3 {[%clk 00:01:22]}
{[%emt 00:00:12]} Bh5 {[%clk 00:02:21]} {[%emt 00:00:02]} 14. Be2 {[%clk
00:01:22]} {[%emt 00:00:02]} Rfe8 {[%clk 00:02:10]} {[%emt 00:00:12]} 15. Nb5
{[%clk 00:01:18]} {[%emt 00:00:06]} Rad8 {[%clk 00:02:01]} {[%emt 00:00:11]} 16.
Nbd4 {[%clk 00:01:10]} {[%emt 00:00:10]} Qb6 {[%clk 00:01:46]} {[%emt
00:00:18]} 17. b3 {[%clk 00:00:59]} {[%emt 00:00:13]} Ne4 {[%clk 00:01:41]}
{[%emt 00:00:07]} 18. Qd3 {[%clk 00:00:48]} {[%emt 00:00:13]} Nb4 {[%clk
00:01:36]} {[%emt 00:00:06]} 19. Qb5 {[%clk 00:00:39]} {[%emt 00:00:10]} Nc3
{[%clk 00:01:07]} {[%emt 00:00:32]} 20. Qxb6 {[%clk 00:00:34]} {[%emt
00:00:07]} Nxe2+ {[%clk 00:00:59]} {[%emt 00:00:10]} 21. Nxe2 {[%clk 00:00:36]}
{[%emt 00:00:01]} axb6 {[%clk 00:01:00]} {[%emt 00:00:01]} 22. Ned4 {[%clk
00:00:33]} {[%emt 00:00:05]} Re4 {[%clk 00:00:50]} {[%emt 00:00:12]} 23. c3
{[%clk 00:00:32]} {[%emt 00:00:03]} Nc6 {[%clk 00:00:41]} {[%emt 00:00:10]} 24.
Rae1 {[%clk 00:00:31]} {[%emt 00:00:03]} Rde8 {[%clk 00:00:40]} {[%emt
00:00:04]} 25. Rxe4 {[%clk 00:00:26]} {[%emt 00:00:07]} Rxe4 {[%clk 00:00:30]}
{[%emt 00:00:12]} 26. Rd1 {[%clk 00:00:23]} {[%emt 00:00:04]} Nxd4 {[%clk
00:00:20]} {[%emt 00:00:11]} 27. Rxd4 {[%clk 00:00:17]} {[%emt 00:00:08]} Bxf3
{[%clk 00:00:19]} {[%emt 00:00:03]} 28. gxf3 {[%clk 00:00:15]} {[%emt
00:00:04]} Rxd4 {[%clk 00:00:20]} {[%emt 00:00:01]} 29. cxd4 {[%clk 00:00:17]}
{[%emt 00:00:01]} Kf8 {[%clk 00:00:21]} 30. Kf1 {[%clk 00:00:17]} {[%emt
00:00:02]} Ke7 {[%clk 00:00:22]} 31. Ke2 {[%clk 00:00:18]} Ke6 {[%clk
00:00:20]} {[%emt 00:00:05]} 32. Kd3 {[%clk 00:00:17]} {[%emt 00:00:03]} Kf5
{[%clk 00:00:21]} {[%emt 00:00:01]} 33. Kc3 {[%clk 00:00:15]} {[%emt 00:00:04]}
Kf4 {[%clk 00:00:22]} 34. Kb4 {[%clk 00:00:16]} Kxf3 {[%clk 00:00:22]} {[%emt
00:00:02]} 35. Kb5 {[%clk 00:00:18]} Kxf2 {[%clk 00:00:23]} {[%emt 00:00:01]}
36. Kxb6 {[%clk 00:00:19]} {[%emt 00:00:01]} Ke3 {[%clk 00:00:24]} {[%emt
00:00:01]} 37. Kxb7 {[%clk 00:00:17]} {[%emt 00:00:04]} f5 {[%clk 00:00:24]} 38.
a4 {[%clk 00:00:18]} f4 {[%clk 00:00:26]} {[%emt 00:00:01]} 39. a5 {[%clk
00:00:20]} f3 40. a6 f2 {[%clk 00:00:28]} 41. a7 {[%clk 00:00:23]} f1=Q {[%clk
00:00:27]} {[%emt 00:00:02]} 42. a8=Q {[%clk 00:00:23]} {[%emt 00:00:02]} Qf7+
{[%clk 00:00:20]} {[%emt 00:00:09]} 43. Kb6 {[%clk 00:00:20]} {[%emt 00:00:05]}
Qe6+ {[%clk 00:00:19]} {[%emt 00:00:03]} 44. Qc6 {[%clk 00:00:15]} {[%emt
00:00:07]} Qxc6+ {[%clk 00:00:09]} {[%emt 00:00:12]} 45. Kxc6 {[%clk 00:00:16]}
{[%emt 00:00:01]} Kxd4 {[%clk 00:00:10]} {[%emt 00:00:01]} 46. b4 {[%clk
00:00:18]} Kc4 {[%clk 00:00:10]} {[%emt 00:00:03]} 47. b5 {[%clk 00:00:19]} d4
{[%clk 00:00:10]} {[%emt 00:00:01]} 48. b6 {[%clk 00:00:20]} d3 {[%clk
00:00:12]} {[%emt 00:00:02]} 49. b7 {[%clk 00:00:22]} d2 {[%clk 00:00:13]} 50.
b8=Q {[%clk 00:00:22]} {[%emt 00:00:01]} d1=Q {[%clk 00:00:13]} {[%emt
00:00:02]} 51. Qb5+ {[%clk 00:00:18]} {[%emt 00:00:06]} Kc3 {[%clk 00:00:11]}
{[%emt 00:00:03]} 52. Qc5+ {[%clk 00:00:15]} {[%emt 00:00:06]} Kb2 {[%clk
00:00:10]} {[%emt 00:00:02]} 53. Qe5+ {[%clk 00:00:13]} {[%emt 00:00:05]} Kc2
{[%clk 00:00:09]} {[%emt 00:00:03]} 54. Qc5+ {[%clk 00:00:10]} {[%emt
00:00:06]} Kb2 {[%clk 00:00:09]} {[%emt 00:00:02]} 55. Qb4+ {[%clk 00:00:11]}
{[%emt 00:00:01]} Kc1 {[%clk 00:00:07]} {[%emt 00:00:04]} 56. Qc4+ {[%emt
00:00:24]} 1/2-1/2

[Event "Biel DQA Blitzn"]
[Site "Biel/Bienne, Switzerland"]
[Date "2022.07.17"]
[Round "10.4"]
[White "Ciarletta, Iris"]
[Black "Moracchini, Margaux"]
[Result "1-0"]
[TimeControl "3 min + 2 sec"]
[WhiteElo "1481"]
[BlackElo "1825"]

1. d4 {[%clk 00:03:02]} {[%emt 00:00:01]} Nf6 {[%clk 00:03:02]} {[%emt
00:00:02]} 2. c4 {[%clk 00:03:03]} {[%emt 00:00:01]} g6 {[%clk 00:03:02]}
{[%emt 00:00:02]} 3. Nc3 {[%clk 00:03:04]} {[%emt 00:00:01]} Bg7 {[%clk
00:03:03]} 4. e4 {[%clk 00:03:05]} {[%emt 00:00:01]} d6 {[%clk 00:03:05]} 5.
Nge2 {[%clk 00:03:06]} {[%emt 00:00:02]} O-O {[%clk 00:03:02]} {[%emt
00:00:04]} 6. Ng3 {[%clk 00:03:07]} {[%emt 00:00:01]} e5 {[%clk 00:02:57]}
{[%emt 00:00:07]} 7. d5 {[%clk 00:03:08]} {[%emt 00:00:01]} a5 {[%clk
00:02:49]} {[%emt 00:00:10]} 8. Be2 {[%clk 00:03:08]} {[%emt 00:00:02]} Na6
{[%clk 00:02:48]} {[%emt 00:00:03]} 9. h4 {[%clk 00:03:09]} {[%emt 00:00:01]}
h5 {[%clk 00:02:34]} {[%emt 00:00:15]} 10. Bg5 {[%clk 00:03:09]} {[%emt
00:00:02]} Qe8 {[%clk 00:02:16]} {[%emt 00:00:20]} 11. Qd2 {[%clk 00:02:59]}
{[%emt 00:00:12]} Bg4 {[%clk 00:01:50]} {[%emt 00:00:28]} 12. Bxf6 {[%clk
00:02:52]} {[%emt 00:00:09]} Bxe2 {[%clk 00:01:47]} {[%emt 00:00:04]} 13. Bxg7
{[%clk 00:02:52]} {[%emt 00:00:02]} Kxg7 {[%clk 00:01:48]} {[%emt 00:00:01]} 14.
Qxe2 {[%clk 00:02:53]} {[%emt 00:00:01]} Qd7 {[%clk 00:01:42]} {[%emt
00:00:07]} 15. Qe3 {[%clk 00:02:49]} {[%emt 00:00:06]} Qg4 {[%clk 00:01:41]}
{[%emt 00:00:04]} 16. Qf3 {[%clk 00:02:46]} {[%emt 00:00:05]} Qxf3 {[%clk
00:01:38]} {[%emt 00:00:06]} 17. gxf3 {[%clk 00:02:47]} Nc5 {[%clk 00:01:36]}
{[%emt 00:00:03]} 18. Kd2 {[%clk 00:02:45]} {[%emt 00:00:04]} Kh6 {[%clk
00:01:33]} {[%emt 00:00:06]} 19. Rag1 {[%clk 00:02:45]} {[%emt 00:00:02]} f5
{[%clk 00:01:07]} {[%emt 00:00:28]} 20. exf5 gxf5 {[%clk 00:01:08]} 21. Nge2
{[%clk 00:02:44]} {[%emt 00:00:02]} Rg8 {[%clk 00:01:08]} {[%emt 00:00:02]} 22.
Rxg8 {[%clk 00:02:41]} {[%emt 00:00:04]} Rxg8 {[%clk 00:01:10]} {[%emt
00:00:01]} 23. Rg1 {[%clk 00:02:37]} {[%emt 00:00:06]} Rxg1 {[%clk 00:01:10]}
24. Nxg1 {[%clk 00:02:38]} {[%emt 00:00:01]} Kg6 {[%clk 00:01:04]} {[%emt
00:00:08]} 25. Nb5 {[%clk 00:02:39]} Na6 {[%clk 00:01:05]} {[%emt 00:00:02]} 26.
Nh3 {[%clk 00:02:35]} {[%emt 00:00:05]} Kf6 {[%clk 00:01:00]} {[%emt 00:00:07]}
27. Ng5 {[%clk 00:02:36]} {[%emt 00:00:01]} Ke7 {[%clk 00:00:56]} {[%emt
00:00:06]} 28. Ne6 {[%clk 00:02:30]} {[%emt 00:00:08]} c6 {[%clk 00:00:57]}
{[%emt 00:00:01]} 29. Nc3 {[%clk 00:02:27]} {[%emt 00:00:04]} cxd5 {[%clk
00:00:31]} {[%emt 00:00:28]} 30. cxd5 {[%clk 00:02:26]} {[%emt 00:00:04]} Nb8
{[%clk 00:00:27]} {[%emt 00:00:06]} 31. Ng7 {[%clk 00:02:25]} {[%emt 00:00:02]}
Kf6 {[%clk 00:00:28]} {[%emt 00:00:01]} 32. Ne8+ {[%clk 00:02:24]} {[%emt
00:00:04]} Ke7 {[%clk 00:00:28]} {[%emt 00:00:01]} 33. Nc7 {[%clk 00:02:24]}
{[%emt 00:00:02]} Nd7 {[%clk 00:00:24]} {[%emt 00:00:06]} 34. N7b5 {[%clk
00:02:19]} {[%emt 00:00:07]} Nf8 {[%clk 00:00:23]} {[%emt 00:00:02]} 35. Ne2
{[%clk 00:02:16]} {[%emt 00:00:05]} Ng6 {[%clk 00:00:24]} 36. Ng3 {[%clk
00:02:17]} {[%emt 00:00:01]} Nxh4 {[%clk 00:00:24]} {[%emt 00:00:03]} 37. Nxh5
{[%clk 00:02:14]} {[%emt 00:00:05]} Nxf3+ {[%clk 00:00:25]} {[%emt 00:00:01]}
38. Ke3 {[%clk 00:02:14]} {[%emt 00:00:02]} Ng5 {[%clk 00:00:24]} {[%emt
00:00:03]} 39. f4 {[%clk 00:02:12]} {[%emt 00:00:04]} Nf7 {[%clk 00:00:18]}
{[%emt 00:00:08]} 40. Ng3 {[%clk 00:02:09]} {[%emt 00:00:05]} Kf6 {[%clk
00:00:18]} {[%emt 00:00:02]} 41. fxe5+ {[%clk 00:02:08]} {[%emt 00:00:03]} Kxe5
{[%clk 00:00:17]} {[%emt 00:00:03]} 42. Ne2 {[%clk 00:02:07]} {[%emt 00:00:03]}
Kxd5 {[%clk 00:00:16]} {[%emt 00:00:04]} 43. Nf4+ {[%clk 00:02:05]} {[%emt
00:00:04]} Ke5 {[%clk 00:00:15]} {[%emt 00:00:02]} 44. Nc3 {[%clk 00:02:05]}
{[%emt 00:00:03]} Nd8 {[%clk 00:00:10]} {[%emt 00:00:08]} 45. Ncd5 {[%clk
00:02:03]} {[%emt 00:00:03]} Nc6 {[%clk 00:00:09]} {[%emt 00:00:03]} 46. a3
{[%clk 00:02:00]} {[%emt 00:00:06]} b5 {[%clk 00:00:09]} {[%emt 00:00:02]} 47.
Nc7 {[%clk 00:01:53]} {[%emt 00:00:09]} b4 {[%clk 00:00:10]} {[%emt 00:00:01]}
48. axb4 {[%clk 00:01:51]} {[%emt 00:00:04]} axb4 {[%clk 00:00:11]} {[%emt
00:00:01]} 49. Nd3+ {[%clk 00:01:51]} {[%emt 00:00:02]} Kf6 {[%clk 00:00:10]}
{[%emt 00:00:02]} 50. Nd5+ {[%clk 00:01:52]} {[%emt 00:00:02]} Ke6 {[%clk
00:00:10]} {[%emt 00:00:01]} 51. N5xb4 {[%clk 00:01:53]} {[%emt 00:00:02]} Na5
{[%clk 00:00:07]} {[%emt 00:00:04]} 52. Nf4+ {[%clk 00:01:51]} {[%emt
00:00:04]} Ke5 {[%clk 00:00:06]} {[%emt 00:00:02]} 53. Nbd3+ {[%clk 00:01:52]}
{[%emt 00:00:02]} Kf6 {[%clk 00:00:07]} {[%emt 00:00:01]} 54. Kd4 {[%clk
00:01:51]} {[%emt 00:00:02]} Ke7 {[%clk 00:00:07]} {[%emt 00:00:03]} 55. Kd5
{[%clk 00:01:48]} {[%emt 00:00:06]} Kd7 {[%clk 00:00:05]} {[%emt 00:00:03]} 56.
b4 {[%clk 00:01:47]} {[%emt 00:00:02]} Nb7 {[%clk 00:00:05]} {[%emt 00:00:03]}
57. Ng6 {[%clk 00:01:44]} {[%emt 00:00:05]} Nd8 {[%clk 00:00:06]} {[%emt
00:00:02]} 58. Ndf4 {[%clk 00:01:41]} {[%emt 00:00:05]} Nf7 {[%clk 00:00:05]}
{[%emt 00:00:02]} 59. Nh4 {[%clk 00:01:35]} {[%emt 00:00:09]} Ng5 {[%clk
00:00:06]} 60. Nxf5 {[%clk 00:01:34]} {[%emt 00:00:03]} Nf7 {[%clk 00:00:06]}
{[%emt 00:00:01]} 61. Nd4 {[%clk 00:01:34]} {[%emt 00:00:02]} Kc7 {[%clk
00:00:06]} {[%emt 00:00:03]} 62. Nd3 {[%clk 00:01:27]} {[%emt 00:00:09]} Kb6
{[%clk 00:00:04]} {[%emt 00:00:04]} 63. Nf5 {[%clk 00:01:24]} {[%emt 00:00:04]}
Kb5 {[%clk 00:00:05]} 64. Nxd6+ {[%clk 00:01:25]} {[%emt 00:00:01]} Nxd6 {[%clk
00:00:06]} 65. Kxd6 {[%clk 00:01:26]} Kb6 {[%clk 00:00:08]} 66. Kd5 {[%emt
00:00:03]} Kb5 67. Kd4 {[%clk 00:01:27]} Kb6 {[%clk 00:00:11]} {[%emt
00:00:01]} 68. Kc4 {[%clk 00:01:28]} Kc6 {[%clk 00:00:12]} 69. b5+ {[%clk
00:01:29]} {[%emt 00:00:01]} Kb6 {[%clk 00:00:14]} 70. Kb4 {[%clk 00:01:30]}
Kc7 {[%clk 00:00:15]} 71. Kc5 Kb7 {[%emt 00:00:02]} 72. Ne5 {[%clk 00:01:32]}
Ka8 {[%clk 00:00:18]} {[%emt 00:00:01]} 73. Kb6 {[%clk 00:01:32]} {[%emt
00:00:03]} Kb8 {[%clk 00:00:19]} 74. Nd7+ {[%emt 00:00:01]} Ka8 75. Kc7 {[%clk
00:01:32]} {[%emt 00:00:02]} 1-0

[ePGN "0.1;DGT LiveChess/2.2.5"]

[Event "Biel DQA Blitzn"]
[Site "Biel/Bienne, Switzerland"]
[Date "2022.07.17"]
[Round "11.1"]
[White "Ciarletta, Iris"]
[Black "Cornileau, Juliette"]
[Result "1-0"]
[TimeControl "3 min + 2 sec"]
[WhiteElo "1481"]
[BlackElo "1653"]

1. d4 {[%clk 00:03:03]} {[%emt 00:15:26]} Nf6 {[%clk 00:03:02]} {[%emt
00:00:03]} 2. c4 {[%clk 00:03:04]} {[%emt 00:00:02]} e6 {[%clk 00:03:03]} 3.
Nc3 {[%clk 00:03:03]} {[%emt 00:00:03]} Bb4 {[%clk 00:03:04]} 4. Bd2 {[%clk
00:03:04]} {[%emt 00:00:01]} d5 {[%clk 00:02:55]} {[%emt 00:00:12]} 5. Nf3
{[%clk 00:03:00]} {[%emt 00:00:05]} c5 {[%clk 00:02:48]} {[%emt 00:00:09]} 6.
cxd5 {[%clk 00:02:55]} {[%emt 00:00:07]} exd5 {[%clk 00:02:45]} {[%emt
00:00:06]} 7. e3 {[%clk 00:02:54]} {[%emt 00:00:03]} O-O {[%clk 00:02:42]}
{[%emt 00:00:04]} 8. dxc5 {[%clk 00:02:54]} {[%emt 00:00:03]} Bxc5 {[%clk
00:02:41]} {[%emt 00:00:03]} 9. Be2 {[%clk 00:02:54]} {[%emt 00:00:02]} Nc6
{[%clk 00:02:40]} {[%emt 00:00:03]} 10. O-O {[%clk 00:02:53]} {[%emt 00:00:02]}
d4 {[%clk 00:02:35]} {[%emt 00:00:07]} 11. exd4 {[%clk 00:02:54]} {[%emt
00:00:01]} Nxd4 {[%clk 00:02:35]} {[%emt 00:00:02]} 12. Nxd4 {[%clk 00:02:49]}
{[%emt 00:00:07]} Bxd4 {[%clk 00:02:36]} {[%emt 00:00:01]} 13. Nb5 {[%clk
00:02:43]} {[%emt 00:00:08]} Bb6 {[%clk 00:02:28]} {[%emt 00:00:09]} 14. Bf3
{[%clk 00:02:34]} {[%emt 00:00:11]} Qd3 {[%clk 00:02:07]} {[%emt 00:00:23]} 15.
Nc3 {[%clk 00:02:23]} {[%emt 00:00:13]} Qg6 {[%clk 00:01:34]} {[%emt 00:00:34]}
16. Bf4 {[%clk 00:02:17]} {[%emt 00:00:08]} Bg4 {[%clk 00:01:15]} {[%emt
00:00:21]} 17. Bxg4 {[%clk 00:02:07]} {[%emt 00:00:12]} Nxg4 {[%clk 00:01:02]}
{[%emt 00:00:15]} 18. h3 {[%clk 00:02:02]} {[%emt 00:00:08]} Nh6 {[%clk
00:00:40]} {[%emt 00:00:23]} 19. Qf3 {[%clk 00:02:00]} {[%emt 00:00:04]} Nf5
{[%clk 00:00:40]} {[%emt 00:00:02]} 20. Qxb7 {[%clk 00:01:53]} {[%emt
00:00:10]} Rac8 {[%clk 00:00:28]} {[%emt 00:00:13]} 21. Qf3 {[%clk 00:01:48]}
{[%emt 00:00:06]} Nd4 {[%clk 00:00:26]} {[%emt 00:00:05]} 22. Qg4 {[%clk
00:01:41]} {[%emt 00:00:07]} Qxg4 {[%clk 00:00:26]} {[%emt 00:00:04]} 23. hxg4
{[%clk 00:01:42]} {[%emt 00:00:01]} Rxc3 {[%clk 00:00:27]} 24. bxc3 {[%emt
00:00:07]} Ne2+ {[%clk 00:00:27]} {[%emt 00:00:01]} 25. Kh2 {[%clk 00:01:38]}
{[%emt 00:00:01]} Nxf4 {[%clk 00:00:27]} {[%emt 00:00:02]} 26. f3 {[%clk
00:01:33]} {[%emt 00:00:07]} g6 {[%clk 00:00:23]} {[%emt 00:00:06]} 27. Rfe1
{[%clk 00:01:32]} {[%emt 00:00:03]} Rc8 {[%clk 00:00:22]} {[%emt 00:00:03]} 28.
Re4 {[%clk 00:01:26]} {[%emt 00:00:09]} Bc7 {[%clk 00:00:19]} {[%emt 00:00:06]}
29. g3 {[%clk 00:01:26]} {[%emt 00:00:02]} Ne6 {[%clk 00:00:17]} {[%emt
00:00:03]} 30. Rd1 {[%clk 00:01:19]} {[%emt 00:00:08]} Ng5 {[%clk 00:00:18]}
{[%emt 00:00:03]} 31. Re3 {[%clk 00:01:18]} {[%emt 00:00:03]} Bb6 {[%clk
00:00:15]} {[%emt 00:00:05]} 32. Red3 {[%clk 00:01:17]} {[%emt 00:00:02]} Kg7
{[%clk 00:00:16]} 33. Re1 {[%clk 00:01:13]} {[%emt 00:00:08]} Ne6 {[%clk
00:00:15]} {[%emt 00:00:03]} 34. f4 {[%clk 00:01:03]} {[%emt 00:00:11]} h5
{[%clk 00:00:08]} {[%emt 00:00:10]} 35. gxh5 {[%clk 00:01:00]} {[%emt
00:00:06]} Rh8 {[%clk 00:00:09]} 36. Kg2 {[%clk 00:00:59]} {[%emt 00:00:03]}
Rxh5 {[%clk 00:00:09]} {[%emt 00:00:02]} 37. Rd7 {[%clk 00:00:57]} {[%emt
00:00:05]} Ra5 {[%clk 00:00:07]} {[%emt 00:00:02]} 38. Rxe6 {[%clk 00:00:56]}
{[%emt 00:00:05]} Rxa2+ {[%clk 00:00:08]} 39. Kh3 {[%clk 00:00:56]} {[%emt
00:00:02]} Ra1 {[%clk 00:00:08]} {[%emt 00:00:02]} 40. Ree7 {[%clk 00:00:55]}
{[%emt 00:00:03]} Rh1+ {[%clk 00:00:05]} {[%emt 00:00:05]} 41. Kg4 {[%clk
00:00:55]} {[%emt 00:00:01]} Kg8 {[%clk 00:00:04]} {[%emt 00:00:03]} 42. Rxf7
{[%clk 00:00:54]} {[%emt 00:00:03]} Re1 {[%clk 00:00:03]} {[%emt 00:00:03]} 43.
Rg7+ {[%clk 00:00:53]} {[%emt 00:00:04]} Kh8 {[%clk 00:00:03]} {[%emt
00:00:03]} 44. Rxg6 {[%clk 00:00:53]} {[%emt 00:00:02]} Bf2 {[%clk 00:00:03]}
{[%emt 00:00:01]} 45. Kf3 {[%clk 00:00:49]} {[%emt 00:00:06]} Bb6 {[%clk
00:00:04]} {[%emt 00:00:02]} 46. Rc6 {[%clk 00:00:42]} {[%emt 00:00:09]} Re3+
{[%clk 00:00:04]} {[%emt 00:00:01]} 47. Kg4 {[%clk 00:00:41]} {[%emt 00:00:02]}
Re8 {[%clk 00:00:04]} {[%emt 00:00:02]} 48. c4 {[%clk 00:00:38]} {[%emt
00:00:05]} Rg8+ {[%clk 00:00:05]} {[%emt 00:00:01]} 49. Kf3 {[%clk 00:00:39]}
{[%emt 00:00:02]} Re8 {[%clk 00:00:04]} {[%emt 00:00:03]} 50. Rb7 {[%clk
00:00:33]} {[%emt 00:00:07]} Bd4 {[%clk 00:00:04]} {[%emt 00:00:02]} 51. f5
{[%clk 00:00:26]} {[%emt 00:00:10]} a5 {[%clk 00:00:05]} {[%emt 00:00:01]} 52.
Rd6 {[%clk 00:00:18]} {[%emt 00:00:10]} Bc5 {[%clk 00:00:03]} {[%emt 00:00:04]}
53. Rd5 {[%clk 00:00:19]} {[%emt 00:00:01]} Bb4 {[%clk 00:00:04]} {[%emt
00:00:02]} 54. f6 {[%clk 00:00:18]} {[%emt 00:00:02]} Rf8 {[%clk 00:00:04]}
{[%emt 00:00:02]} 55. Kg4 {[%clk 00:00:16]} {[%emt 00:00:04]} Rxf6 {[%clk
00:00:03]} {[%emt 00:00:03]} 56. Rd8+ {[%clk 00:00:16]} {[%emt 00:00:01]} Bf8
{[%clk 00:00:03]} {[%emt 00:00:02]} 57. Rb5 {[%clk 00:00:13]} {[%emt 00:00:05]}
Rg6+ {[%clk 00:00:03]} {[%emt 00:00:02]} 58. Rg5 {[%clk 00:00:14]} {[%emt
00:00:02]} Rxg5+ {[%clk 00:00:04]} {[%emt 00:00:02]} 59. Kxg5 1-0